fUSD/lending_fUSD_20250608
["ID","MTS","AMOUNT","RATE_DAILY","PERIOD"]
[364992526,1749385852375,-202.0,0.0001962,2]
[364992527,1749385852385,-211.0,0.0001962,2]
[364992528,1749385852395,-212.0,0.0001962,2]
[364992529,1749385852404,-150.0,0.00019622,4]
[364992530,1749385852414,-150.0,0.00019622,4]
[364992531,1749385852423,-248.82484129,0.00019623,4]
[364992532,1749385852433,-315.62753533,0.00019623,4]
[364992533,1749385852442,-500.0,0.00019625,2]
[364992534,1749385852452,-150.0,0.0001963,4]
[364992535,1749385852464,-150.0,0.00019632,4]
[364992536,1749385852473,-610.0,0.00019633,2]
[364992537,1749385852483,-161.28496898,0.00019633,2]
[364992538,1749385852494,-248.82484129,0.00019637,4]
[364992539,1749385852503,-315.62753533,0.00019637,4]
[364992540,1749385852512,-150.0,0.00019637,4]
[364992541,1749385852523,-150.0,0.00019637,4]
[364992542,1749385852533,-156.290974,0.00019641,3]
[364992543,1749385852542,-322.635219,0.00019641,3]
[364992544,1749385852552,-152.498506,0.00019641,3]
[364992545,1749385852561,-581.0,0.00019644,2]
[364992546,1749385852571,-150.0,0.00019647,4]
[364992547,1749385852580,-1000.0,0.0001965,2]
[364992548,1749385852590,-248.82484129,0.00019652,4]
[364992549,1749385852600,-315.62753533,0.00019652,4]
[364992550,1749385852610,-252.38555365,0.00019653,2]
[364992551,1749385852620,-150.0,0.00019657,4]
[364992552,1749385852630,-610.0,0.0001966,2]
[364992553,1749385852639,-222.79533623,0.00019661,2]
[364992554,1749385852649,-150.0,0.00019663,4]
[364992555,1749385852658,-150.0,0.00019664,4]
[364992556,1749385852667,-248.82484129,0.00019666,4]
[364992557,1749385852677,-315.62753533,0.00019666,4]
[364992558,1749385852686,-501.76,0.00019667,2]
[364992559,1749385852695,-150.0,0.00019669,4]
[364992560,1749385852707,-975.56,0.0001967,2]
[364992561,1749385852717,-110909.50161445,0.00019671,2]
[364992562,1749385852726,-480.0,0.00019671,2]
[364992563,1749385852735,-480.0,0.00019671,2]
[364992564,1749385852744,-480.0,0.00019671,2]
[364992565,1749385852756,-268.61320116,0.00019671,2]
[364992566,1749385852765,-480.0,0.00019671,2]
[364992567,1749385852774,-445.5830162,0.00019671,2]
[364992568,1749385852783,-480.0,0.00019671,2]
[364992569,1749385852792,-480.0,0.00019671,2]
[364992570,1749385852802,-519.09,0.00019671,2]
[364992571,1749385852812,-480.0,0.00019671,2]
[364992572,1749385852822,-538.83,0.00019671,2]
[364992573,1749385852832,-762.38,0.00019671,2]
[364992574,1749385852841,-480.0,0.00019671,2]
[364992575,1749385852850,-480.0,0.00019671,2]
[364992576,1749385852860,-480.0,0.00019671,2]
[364992577,1749385852870,-480.0,0.00019671,2]
[364992578,1749385852879,-480.0,0.00019671,2]
[364992579,1749385852888,-586.52,0.00019671,2]
[364992580,1749385852898,-480.0,0.00019671,2]
[364992581,1749385852907,-480.0,0.00019671,2]
[364992582,1749385852917,-480.0,0.00019671,2]
[364992583,1749385852927,-480.0,0.00019671,2]
[364992584,1749385852936,-480.0,0.00019671,2]
[364992585,1749385852946,-754.53,0.00019671,2]
[364992586,1749385852956,-480.0,0.00019671,2]
[364992587,1749385852966,-480.0,0.00019671,2]
[364992588,1749385852975,-718.91,0.00019671,2]
[364992589,1749385852986,-480.0,0.00019671,2]
[364992590,1749385852995,-480.0,0.00019671,2]
[364992591,1749385853005,-1428.66,0.00019671,2]
[364992592,1749385853014,-1242.72,0.00019671,2]
[364992593,1749385853180,-480.0,0.00019671,2]
[364992594,1749385853190,-480.0,0.00019671,2]
[364992595,1749385853200,-480.0,0.00019671,2]
[364992596,1749385853211,-617.35444717,0.00019671,2]
[364992597,1749385853221,-1678.27,0.00019671,2]
[364992598,1749385853230,-480.0,0.00019671,2]
[364992599,1749385853240,-480.0,0.00019671,2]
[364992600,1749385853249,-642.5,0.00019671,2]
[364992601,1749385853258,-480.0,0.00019671,2]
[364992602,1749385853267,-790.11,0.00019671,2]
[364992603,1749385853277,-2859.82,0.00019671,2]
[364992604,1749385853286,-480.0,0.00019671,2]
[364992605,1749385853295,-480.0,0.00019671,2]
[364992606,1749385853305,-480.0,0.00019671,2]
[364992607,1749385853315,-480.0,0.00019671,2]
[364992608,1749385853325,-480.0,0.00019671,2]
[364992609,1749385853334,-480.0,0.00019671,2]
[364992610,1749385853347,-691.53,0.00019671,2]
[364992611,1749385853357,-1593.28,0.00019671,2]
[364992612,1749385853366,-663.77,0.00019671,2]
[364992613,1749385853376,-480.0,0.00019671,2]
[364992614,1749385853386,-1193.84,0.00019671,2]
[364992615,1749385853397,-480.0,0.00019671,2]
[364992616,1749385853407,-3078.27,0.00019671,2]
[364992617,1749385853417,-617.64170666,0.00019671,2]
[364992618,1749385853427,-480.0,0.00019671,2]
[364992619,1749385853437,-499.12,0.00019671,2]
[364992620,1749385853446,-1529.93,0.00019671,2]
[364992621,1749385853456,-480.0,0.00019671,2]
[364992622,1749385853467,-2782.34,0.00019671,2]
[364992623,1749385853477,-480.0,0.00019671,2]
[364992624,1749385853487,-480.0,0.00019671,2]
[364992625,1749385853497,-956.15,0.00019671,2]
[364992626,1749385853507,-480.0,0.00019671,2]
[364992627,1749385853517,-635.79,0.00019671,2]
[364992628,1749385853527,-480.0,0.00019671,2]
[364992629,1749385853537,-934.04,0.00019671,2]
[364992630,1749385853547,-2189.81,0.00019671,2]
[364992631,1749385853557,-480.0,0.00019671,2]
[364992632,1749385853567,-480.0,0.00019671,2]
[364992633,1749385853577,-563.91,0.00019671,2]
[364992634,1749385853587,-521.55949663,0.00019671,2]
[364992635,1749385853598,-49283.5,0.00019671,2]
[364992636,1749385853608,-493.03,0.00019671,2]
[364992637,1749385853617,-480.0,0.00019671,2]
[364992638,1749385853627,-480.0,0.00019671,2]
[364992639,1749385853637,-576.32,0.00019671,2]
[364992640,1749385853647,-1871.24,0.00019671,2]
[364992641,1749385853657,-480.0,0.00019671,2]
[364992642,1749385853667,-628.18,0.00019671,2]
[364992643,1749385853676,-480.0,0.00019671,2]
[364992644,1749385853686,-480.0,0.00019671,2]
[364992645,1749385853695,-480.0,0.00019671,2]
[364992646,1749385853705,-770.28,0.00019671,2]
[364992647,1749385853716,-480.0,0.00019671,2]
[364992648,1749385853726,-480.0,0.00019671,2]
[364992649,1749385853736,-480.0,0.00019671,2]
[364992650,1749385853745,-480.0,0.00019671,2]
[364992651,1749385853755,-480.0,0.00019671,2]
[364992652,1749385853765,-480.0,0.00019671,2]
[364992653,1749385853774,-546.57,0.00019671,2]
[364992654,1749385853784,-480.0,0.00019671,2]
[364992655,1749385853793,-480.0,0.00019671,2]
[364992656,1749385853803,-480.0,0.00019671,2]
[364992657,1749385853813,-480.0,0.00019671,2]
[364992658,1749385853823,-480.0,0.00019671,2]
[364992659,1749385853832,-564.41,0.00019671,2]
[364992660,1749385853842,-367.73820259,0.00019671,2]
[364992661,1749385853852,-532.76,0.00019671,2]
[364992662,1749385853861,-4221.08,0.00019671,2]
[364992663,1749385853871,-3800.57,0.00019671,2]
[364992664,1749385853880,-1947.47,0.00019671,2]
[364992665,1749385853890,-581.0,0.00019671,2]
[364992666,1749385853899,-500.0,0.00019673,2]
[364992667,1749385853909,-593.36043636,0.00019673,2]
[364992668,1749385853919,-500.0,0.00019673,2]
[364992669,1749385853928,-505.17785315,0.00019673,2]
[364992670,1749385853938,-500.0,0.00019673,2]
[364992671,1749385853948,-500.0,0.00019673,2]
[364992672,1749385853959,-500.73100308,0.00019673,2]
[364992673,1749385853968,-299.86352311,0.00019673,2]
[364992674,1749385853978,-500.0,0.00019673,2]
[364992675,1749385853987,-500.0,0.00019673,2]
[364992676,1749385853997,-500.0,0.00019673,2]
[364992677,1749385854007,-500.0,0.00019673,2]
[364992678,1749385854016,-150.0,0.0001968,4]
[364992679,1749385854026,-2981.50650972,0.0001968,2]
[364992680,1749385854035,-248.82484129,0.0001968,4]
[364992681,1749385854044,-315.62753533,0.0001968,4]
[364992682,1749385854053,-150.0,0.00019682,4]
[364992683,1749385854063,-610.0,0.00019687,2]
[364992684,1749385854072,-150.0,0.0001969,4]
[364992685,1749385854081,-248.82484129,0.00019695,4]
[364992686,1749385854091,-315.62753533,0.00019695,4]
[364992687,1749385854101,-150.0,0.00019697,4]
[364992688,1749385854110,-581.0,0.00019699,2]
[364992689,1749385854119,-1000.0,0.000197,2]
[364992690,1749385854128,-156.290974,0.000197,5]
[364992691,1749385854138,-322.635219,0.000197,5]
[364992692,1749385854148,-152.498506,0.000197,5]
[364992693,1749385854157,-1500.0,0.000197,7]
[364992694,1749385854167,-150.0,0.000197,4]
[364992695,1749385854176,-354.39,0.00019702,2]
[364992696,1749385854186,-500.0,0.00019702,2]
[364992697,1749385854195,-600.0,0.00019704,4]
[364992698,1749385854204,-161.5491588,0.00019707,2]
[364992699,1749385854215,-248.82484129,0.00019709,4]
[364992700,1749385854224,-315.62753533,0.00019709,4]
[364992701,1749385854234,-150.0,0.00019713,4]
[364992702,1749385854244,-610.0,0.00019715,2]
[364992703,1749385854253,-150.0,0.00019716,4]
[364992704,1749385854262,-1000.0,0.00019721,2]
[364992705,1749385854271,-248.82484129,0.00019723,4]
[364992706,1749385854281,-315.62753533,0.00019723,4]
[364992707,1749385854290,-581.0,0.00019726,2]
[364992708,1749385854300,-150.0,0.0001973,4]
[364992709,1749385854309,-150.0,0.00019732,4]
[364992710,1749385854319,-150.0,0.00019733,4]
[364992711,1749385854328,-248.82484129,0.00019738,4]
[364992712,1749385854338,-315.62753533,0.00019738,4]
[364992713,1749385854348,-150.0,0.00019738,4]
[364992714,1749385854358,-150.0,0.00019738,4]
[364992715,1749385854368,-610.0,0.00019742,2]
[364992716,1749385854377,-150.0,0.00019743,4]
[364992717,1749385854387,-150.0,0.00019746,4]
[364992718,1749385854397,-150.0,0.00019747,4]
[364992719,1749385854406,-1000.0,0.0001975,2]
[364992720,1749385854415,-248.82484129,0.00019752,4]
[364992721,1749385854425,-315.62753533,0.00019752,4]
[364992722,1749385854434,-581.0,0.00019753,2]
[364992723,1749385854444,-150.0,0.00019764,4]
[364992724,1749385854454,-150.0,0.00019764,4]
[364992725,1749385854463,-150.0,0.00019764,4]
[364992726,1749385854473,-150.0,0.00019764,4]
[364992727,1749385854482,-248.82484129,0.00019766,4]
[364992728,1749385854492,-315.62753533,0.00019766,4]
[364992729,1749385854501,-161.28496898,0.00019767,2]
[364992730,1749385854510,-150.0,0.00019769,4]
[364992731,1749385854520,-610.0,0.0001977,2]
[364992732,1749385854529,-252.38555365,0.00019777,2]
[364992733,1749385854539,-150.0,0.0001978,4]
[364992734,1749385854548,-581.0,0.00019781,2]
[364992735,1749385854558,-248.82484129,0.00019781,4]
[364992736,1749385854568,-315.62753533,0.00019781,4]
[364992737,1749385854577,-150.0,0.00019784,4]
[364992738,1749385854587,-500.0,0.00019788,2]
[364992739,1749385854597,-500.0,0.00019788,2]
[364992740,1749385854606,-2981.50650972,0.0001979,2]
[364992741,1749385854615,-248.82484129,0.00019795,4]
[364992742,1749385854627,-315.62753533,0.00019795,4]
[364992743,1749385854640,-150.0,0.00019795,4]
[364992744,1749385854649,-150.0,0.00019795,4]
[364992745,1749385854661,-610.0,0.00019797,2]
[364992746,1749385854672,-150.0,0.00019797,4]
[364992747,1749385854683,-500.0,0.00019799,2]
[364992748,1749385854694,-2000.0,0.000198,2]
[364992749,1749385854704,-208.8,0.000198,2]
[364992750,1749385854714,-28164.20347042,0.000198,2]
[364992751,1749385854723,-1000.0,0.000198,2]
[364992752,1749385854732,-1500.0,0.000198,7]
[364992753,1749385854741,-21995.30285843,0.000198,2]
[364992754,1749385854752,-593.0,0.00019808,2]
[364992755,1749385854763,-248.82484129,0.00019809,4]
[364992756,1749385854772,-315.62753533,0.00019809,4]
[364992757,1749385854781,-202.0,0.0001981,2]
[364992758,1749385854790,-211.0,0.0001981,2]
[364992759,1749385854800,-212.0,0.0001981,2]
[364992760,1749385854810,-150.0,0.00019814,4]
[364992761,1749385854820,-174.98726041,0.00019817,2]
[364992762,1749385854829,-150.0,0.00019821,4]
[364992763,1749385854838,-248.82484129,0.00019824,4]
[364992764,1749385854848,-315.62753533,0.00019824,4]
[364992765,1749385854857,-610.0,0.00019824,2]
[364992766,1749385854866,-150.0,0.00019827,4]
[364992767,1749385854875,-150.0,0.0001983,4]
[364992768,1749385854884,-975.56,0.00019834,2]
[364992769,1749385854893,-150.0,0.00019835,4]
[364992770,1749385854902,-150.0,0.00019835,4]
[364992771,1749385854911,-480.0,0.00019835,2]
[364992772,1749385854921,-480.0,0.00019835,2]
[364992773,1749385854930,-480.0,0.00019835,2]
[364992774,1749385854939,-262.15609792,0.00019835,2]
[364992775,1749385854948,-400.0,0.00019835,2]
[364992776,1749385854958,-480.0,0.00019835,2]
[364992777,1749385854968,-519.09,0.00019835,2]
[364992778,1749385854977,-480.0,0.00019835,2]
[364992779,1749385854987,-538.83,0.00019835,2]
[364992780,1749385854996,-762.38,0.00019835,2]
[364992781,1749385855005,-480.0,0.00019835,2]
[364992782,1749385855014,-196.24,0.00019835,2]
[364992783,1749385855023,-480.0,0.00019835,2]
[364992784,1749385855032,-480.0,0.00019835,2]
[364992785,1749385855041,-480.0,0.00019835,2]
[364992786,1749385855050,-586.52,0.00019835,2]
[364992787,1749385855059,-480.0,0.00019835,2]
[364992788,1749385855069,-480.0,0.00019835,2]
[364992789,1749385855078,-480.0,0.00019835,2]
[364992790,1749385855091,-480.0,0.00019835,2]
[364992791,1749385855108,-480.0,0.00019835,2]
[364992792,1749385855118,-754.53,0.00019835,2]
[364992793,1749385855127,-480.0,0.00019835,2]
[364992794,1749385855137,-480.0,0.00019835,2]
[364992795,1749385855147,-718.91,0.00019835,2]
[364992796,1749385855157,-480.0,0.00019835,2]
[364992797,1749385855167,-480.0,0.00019835,2]
[364992798,1749385855176,-1428.66,0.00019835,2]
[364992799,1749385855187,-1242.72,0.00019835,2]
[364992800,1749385855196,-480.0,0.00019835,2]
[364992801,1749385855206,-480.0,0.00019835,2]
[364992802,1749385855216,-480.0,0.00019835,2]
[364992803,1749385855226,-1678.27,0.00019835,2]
[364992804,1749385855235,-480.0,0.00019835,2]
[364992805,1749385855244,-480.0,0.00019835,2]
[364992806,1749385855253,-642.5,0.00019835,2]
[364992807,1749385855262,-480.0,0.00019835,2]
[364992808,1749385855271,-790.11,0.00019835,2]
[364992809,1749385855280,-2859.82,0.00019835,2]
[364992810,1749385855292,-480.0,0.00019835,2]
[364992811,1749385855304,-480.0,0.00019835,2]
[364992812,1749385855316,-480.0,0.00019835,2]
[364992813,1749385855326,-480.0,0.00019835,2]
[364992814,1749385855335,-365.38836097,0.00019835,2]
[364992815,1749385855345,-691.53,0.00019835,2]
[364992816,1749385855358,-480.0,0.00019835,2]
[364992817,1749385855367,-1593.28,0.00019835,2]
[364992818,1749385855377,-663.77,0.00019835,2]
[364992819,1749385855387,-480.0,0.00019835,2]
[364992820,1749385855397,-1193.84,0.00019835,2]
[364992821,1749385855406,-480.0,0.00019835,2]
[364992822,1749385855415,-3078.27,0.00019835,2]
[364992823,1749385855425,-480.0,0.00019835,2]
[364992824,1749385855434,-499.12,0.00019835,2]
[364992825,1749385855443,-1529.93,0.00019835,2]
[364992826,1749385855452,-480.0,0.00019835,2]
[364992827,1749385855463,-2782.34,0.00019835,2]
[364992828,1749385855472,-480.0,0.00019835,2]
[364992829,1749385855481,-480.0,0.00019835,2]
[364992830,1749385855491,-956.15,0.00019835,2]
[364992831,1749385855500,-480.0,0.00019835,2]
[364992832,1749385855511,-635.79,0.00019835,2]
[364992833,1749385855521,-480.0,0.00019835,2]
[364992834,1749385855530,-934.04,0.00019835,2]
[364992835,1749385855540,-2189.81,0.00019835,2]
[364992836,1749385855553,-480.0,0.00019835,2]
[364992837,1749385855563,-480.0,0.00019835,2]
[364992838,1749385855573,-563.91,0.00019835,2]
[364992839,1749385855583,-49283.5,0.00019835,2]
[364992840,1749385855592,-493.03,0.00019835,2]
[364992841,1749385855602,-480.0,0.00019835,2]
[364992842,1749385855612,-286.91081917,0.00019835,2]
[364992843,1749385855621,-576.32,0.00019835,2]
[364992844,1749385855630,-1871.24,0.00019835,2]
[364992845,1749385855640,-480.0,0.00019835,2]
[364992846,1749385855651,-628.18,0.00019835,2]
[364992847,1749385855663,-480.0,0.00019835,2]
[364992848,1749385855675,-480.0,0.00019835,2]
[364992849,1749385855684,-480.0,0.00019835,2]
[364992850,1749385855696,-770.28,0.00019835,2]
[364992851,1749385855707,-480.0,0.00019835,2]
[364992852,1749385855718,-480.0,0.00019835,2]
[364992853,1749385855729,-480.0,0.00019835,2]
[364992854,1749385855742,-273.92170769,0.00019835,2]
[364992855,1749385855751,-480.0,0.00019835,2]
[364992856,1749385855761,-480.0,0.00019835,2]
[364992857,1749385855771,-546.57,0.00019835,2]
[364992858,1749385855780,-164.7447194,0.00019835,2]
[364992859,1749385855791,-480.0,0.00019835,2]
[364992860,1749385855801,-480.0,0.00019835,2]
[364992861,1749385855812,-480.0,0.00019835,2]
[364992862,1749385855823,-480.0,0.00019835,2]
[364992863,1749385855834,-564.41,0.00019835,2]
[364992864,1749385855843,-532.76,0.00019835,2]
[364992865,1749385855852,-4221.08,0.00019835,2]
[364992866,1749385855861,-3800.57,0.00019835,2]
[364992867,1749385855871,-1947.47,0.00019835,2]
[364992868,1749385855882,-220.79694484,0.00019835,2]
[364992869,1749385855893,-248.82484129,0.00019838,4]
[364992870,1749385855903,-315.62753533,0.00019838,4]
[364992871,1749385855914,-12500.0,0.00019838,2]
[364992872,1749385855924,-5800.0,0.00019841,2]
[364992873,1749385855934,-150.0,0.00019847,4]
[364992874,1749385855945,-12500.0,0.00019847,2]
[364992875,1749385855954,-150.0,0.00019848,4]
[364992876,1749385855964,-5800.0,0.00019849,2]
[364992877,1749385855973,-156.290974,0.00019849,5]
[364992878,1749385855985,-322.635219,0.00019849,5]
[364992879,1749385855995,-152.498506,0.00019849,5]
[364992880,1749385856004,-1000.0,0.0001985,2]
[364992881,1749385856015,-610.0,0.00019852,2]
[364992882,1749385856027,-248.82484129,0.00019853,4]
[364992883,1749385856036,-315.62753533,0.00019853,4]
[364992884,1749385856046,-500.0,0.00019854,2]
[364992885,1749385856055,-500.0,0.00019855,2]
[364992886,1749385856065,-12500.0,0.00019856,2]
[364992887,1749385856076,-5800.0,0.00019858,2]
[364992888,1749385856088,-150.0,0.00019858,4]
[364992889,1749385856098,-150.0,0.00019864,4]
[364992890,1749385856108,-12500.0,0.00019865,2]
[364992891,1749385856117,-5800.0,0.00019866,2]
[364992892,1749385856127,-248.82484129,0.00019867,4]
[364992893,1749385856136,-315.62753533,0.00019867,4]
[364992894,1749385856145,-150.0,0.00019867,4]
[364992895,1749385856155,-150.0,0.00019867,4]
[364992896,1749385856164,-12500.0,0.00019874,2]
[364992897,1749385856174,-150.0,0.00019874,4]
[364992898,1749385856184,-5800.0,0.00019875,2]
[364992899,1749385856193,-616.0,0.00019879,2]
[364992900,1749385856203,-150.0,0.00019881,4]
[364992901,1749385856214,-248.82484129,0.00019881,4]
[364992902,1749385856224,-315.62753533,0.00019881,4]
[364992903,1749385856234,-12500.0,0.00019882,2]
[364992904,1749385856243,-5800.0,0.00019883,2]
[364992905,1749385856252,-150.0,0.00019885,4]
[364992906,1749385856262,-500.0,0.00019888,2]
[364992907,1749385856271,-637.05,0.00019888,2]
[364992908,1749385856280,-150.0,0.0001989,4]
[364992909,1749385856290,-975.56,0.0001989,2]
[364992910,1749385856299,-12500.0,0.00019891,2]
[364992911,1749385856308,-5800.0,0.00019892,2]
[364992912,1749385856318,-5800.0,0.00019892,2]
[364992913,1749385856328,-248.82484129,0.00019896,4]
[364992914,1749385856337,-315.62753533,0.00019896,4]
[364992915,1749385856348,-150.0,0.00019897,4]
[364992916,1749385856359,-12500.0,0.000199,2]
[364992917,1749385856369,-1238.8756231,0.000199,2]
[364992918,1749385856379,-5800.0,0.000199,2]
[364992919,1749385856389,-1000.0,0.000199,2]
[364992920,1749385856399,-5800.0,0.000199,2]
[364992921,1749385856408,-161.28496898,0.000199,2]
[364992922,1749385856417,-161.20852273,0.000199,2]
[364992923,1749385856427,-2981.50650972,0.000199,2]
[364992924,1749385856436,-252.38555365,0.000199,2]
[364992925,1749385856446,-1500.0,0.000199,7]
[364992926,1749385856456,-513.08970578,0.000199,2]
[364992927,1749385856466,-2891.5264315,0.000199,2]
[364992928,1749385856639,-636.00448446,0.000199,2]
[364992929,1749385856649,-208.50189585,0.000199,3]
[364992930,1749385856660,-424.10021654,0.000199,2]
[364992931,1749385856670,-150.0,0.000199,4]
[364992932,1749385856681,-150.0,0.00019906,4]
[364992933,1749385856690,-150.0,0.00019906,4]
[364992934,1749385856700,-248.82484129,0.0001991,4]
[364992935,1749385856709,-315.62753533,0.0001991,4]
[364992936,1749385856720,-150.0,0.00019914,4]
[364992937,1749385856730,-150.0,0.00019921,4]
[364992938,1749385856741,-150.0,0.00019923,4]
[364992939,1749385856752,-248.82484129,0.00019924,4]
[364992940,1749385856761,-315.62753533,0.00019924,4]
[364992941,1749385856771,-150.0,0.00019927,4]
[364992942,1749385856781,-150.0,0.00019931,4]
[364992943,1749385856791,-150.0,0.00019936,4]
[364992944,1749385856801,-248.82484129,0.00019939,4]
[364992945,1749385856811,-315.62753533,0.00019939,4]
[364992946,1749385856820,-267.36687066,0.00019941,5]
[364992947,1749385856830,-150.0,0.00019947,4]
[364992948,1749385856842,-16000.0,0.0001995,2]
[364992949,1749385856853,-248.82484129,0.00019953,4]
[364992950,1749385856862,-315.62753533,0.00019953,4]
[364992951,1749385856871,-150.0,0.00019953,4]
[364992952,1749385856881,-150.0,0.00019953,4]
[364992953,1749385856891,-150.0,0.00019953,4]
[364992954,1749385856900,-800.0,0.00019959,2]
[364992955,1749385856910,-800.0,0.00019959,2]
[364992956,1749385856920,-800.0,0.00019959,2]
[364992957,1749385856930,-800.0,0.00019959,2]
[364992958,1749385856940,-800.0,0.00019959,2]
[364992959,1749385856950,-800.0,0.00019959,2]
[364992960,1749385856959,-800.0,0.00019959,2]
[364992961,1749385856970,-800.0,0.00019959,2]
[364992962,1749385856980,-800.0,0.00019959,2]
[364992963,1749385856989,-800.0,0.00019959,2]
[364992964,1749385856998,-150.0,0.00019964,4]
[364992965,1749385857008,-248.82484129,0.00019967,4]
[364992966,1749385857017,-315.62753533,0.00019967,4]
[364992967,1749385857027,-502.15443516,0.0001997,2]
[364992968,1749385857036,-300.7713788,0.0001997,2]
[364992969,1749385857046,-400.0,0.0001997,2]
[364992970,1749385857056,-300.0,0.0001997,2]
[364992971,1749385857065,-400.0,0.0001997,2]
[364992972,1749385857076,-300.0,0.0001997,2]
[364992973,1749385857086,-400.0,0.0001997,2]
[364992974,1749385857096,-639.0,0.00019973,2]
[364992975,1749385857105,-500.0,0.00019973,2]
[364992976,1749385857114,-538.75117592,0.00019973,2]
[364992977,1749385857125,-500.0,0.00019973,2]
[364992978,1749385857135,-499.32827844,0.00019973,2]
[364992979,1749385857145,-500.0,0.00019973,2]
[364992980,1749385857154,-500.0,0.00019973,2]
[364992981,1749385857163,-500.0,0.00019973,2]
[364992982,1749385857173,-500.0,0.00019973,2]
[364992983,1749385857183,-369.46704545,0.00019973,2]
[364992984,1749385857192,-500.0,0.00019973,2]
[364992985,1749385857202,-274.77281627,0.00019973,2]
[364992986,1749385857212,-323.966636,0.00019973,2]
[364992987,1749385857221,-500.0,0.00019973,2]
[364992988,1749385857231,-500.0,0.00019973,2]
[364992989,1749385857241,-500.0,0.00019973,2]
[364992990,1749385857250,-150.0,0.00019979,4]
[364992991,1749385857259,-150.0,0.00019981,4]
[364992992,1749385857269,-248.82484129,0.00019982,4]
[364992993,1749385857278,-315.62753533,0.00019982,4]
[364992994,1749385857288,-150.0,0.00019985,4]
[364992995,1749385857298,-6695.3412584,0.00019986,2]
[364992996,1749385857308,-7304.0086455,0.00019986,2]
[364992997,1749385857319,-7912.6760326,0.00019986,2]
[364992998,1749385857329,-8521.3434198,0.00019986,2]
[364992999,1749385857339,-9130.0108069,0.00019986,2]
[364993000,1749385857351,-1478.7769816,0.00019986,2]
[364993001,1749385857360,-1618.8922659,0.00019986,2]
[364993002,1749385857370,-1759.0075503,0.00019986,2]
[364993003,1749385857379,-1899.1228347,0.00019986,2]
[364993004,1749385857388,-2039.2381191,0.00019986,2]
[364993005,1749385857399,-975.56,0.00019986,2]
[364993006,1749385857409,-503.8094988,0.00019986,2]
[364993007,1749385857418,-551.5458458,0.00019986,2]
[364993008,1749385857428,-599.2821929,0.00019986,2]
[364993009,1749385857438,-647.0185399,0.00019986,2]
[364993010,1749385857448,-694.754887,0.00019986,2]
[364993011,1749385857457,-12995.9514698,0.00019986,2]
[364993012,1749385857467,-15162.4849065,0.00019986,2]
[364993013,1749385857477,-17329.0183432,0.00019986,2]
[364993014,1749385857487,-19495.5517799,0.00019986,2]
[364993015,1749385857496,-21662.0852166,0.00019986,2]
[364993016,1749385857506,-150.0,0.00019987,4]
[364993017,1749385857515,-5000.0,0.00019987,2]
[364993018,1749385857525,-5000.0,0.00019987,2]
[364993019,1749385857535,-5000.0,0.00019987,2]
[364993020,1749385857544,-5000.0,0.00019987,2]
[364993021,1749385857554,-5000.0,0.00019987,2]
[364993022,1749385857563,-5000.0,0.00019987,2]
[364993023,1749385857572,-5000.0,0.00019987,2]
[364993024,1749385857582,-5000.0,0.00019987,2]
[364993025,1749385857591,-5000.0,0.00019987,2]